Cogmind - Beta 14 @@@ ROGUE MODE // 2024.12.03 @ 14:28:22 Player: Shimmyarah Result: Destroyed by S-10 Pest with Light Assault Rifle Performance ------------- Evolutions (0) 0 Regions Visited (2) 400 Robots Destroyed (19) 95 Value Destroyed (156) 156 Prototype IDs (3) 60 Alien Tech Used (0) 0 Bonus (0) 0 TOTAL SCORE: 711 Bonus ------- None Cogmind --------- Core Integrity 0/250 Matter 300/300 Energy 93/100 System Corruption 2% Temperature Cool (0) Movement Core (50) Location -10/Mines Parts ------- > --- POWER (1) -------- (None) > --- PROPULSION (2) --- (None) > --- UTILITY (2) ------ Visual Processing Unit Seismic Detector > --- WEAPON (2) ------- (None) > --- INVENTORY (5) ---- Light Ion Engine High-capacity Matter Pod (200) High-capacity Matter Pod (200) Hacking Suite Bore Cannon Peak State ------------ > --- POWER ------------ Light Ion Engine > --- PROPULSION ------- Aluminum Leg Wheel > --- UTILITY ---------- Visual Processing Unit Seismic Detector > --- WEAPON ----------- Mining Laser Makeshift Axe > --- INVENTORY -------- Light Ion Engine High-capacity Matter Pod Hacking Suite Bore Cannon [Rating: 12] Favorites ----------- Power Ion Engine Engine Ion Engine Propulsion Aluminum Leg Leg Aluminum Leg Wheel Wheel Utility Small Storage Unit Device Seismic Detector Storage Small Storage Unit Processor Visual Processing Unit Weapon Light Assault Rifle Energy Gun Medium Laser Ballistic Gun Light Assault Rifle Ballistic Cannon Light Cannon Launcher Grenade Launcher Special Weapon Mining Laser Slashing Weapon Makeshift Axe Build | -11 -10 -10 ------- Run | Yrd Mat Min Slots Evolved . | . . . Power . | . . . Propulsion . | . . . Utility . | . . . Weapon . | . . . Parts Attached 20 | 1 8 11 Power 2 | . . 2 Engine 2 | . . 2 Core . | . . . Reactor . | . . . Propulsion 5 | . 2 3 Treads . | . . . Leg 2 | . 1 1 Wheel 3 | . 1 2 Hover . | . . . Flight . | . . . Utility 4 | 1 1 2 Device 2 | 1 . 1 Storage . | . . . Processor 2 | . 1 1 Hackware . | . . . Protection . | . . . Artifact . | . . . Weapon 9 | . 5 4 Energy Gun 1 | . 1 . Energy Cannon . | . . . Ballistic Gun . | . . . Ballistic Cannon 3 | . 2 1 Launcher 2 | . 1 1 Special Weapon 2 | . 1 1 Impact Weapon . | . . . Slashing Weapon 1 | . . 1 Piercing Weapon . | . . . Special Melee Weapon . | . . . Unidentified Prototypes . | . . . Parts Lost 7 | . . 7 Power 1 | . . 1 Propulsion 2 | . . 2 Utility . | . . . Weapon 4 | . . 4 Highest Loss Streak 6 | . . 6 To Critical Strikes . | . . . Average Slot Usage (%) 93 | . 100 83 Engine 13 | . 14 13 Leg 19 | . 23 14 Wheel 6 | . 4 10 Device 11 | . 10 14 Storage 10 | . 14 5 Processor 5 | . 3 7 Energy Gun 8 | . 13 1 Ballistic Gun 2 | . 3 . Ballistic Cannon 3 | . 4 1 Launcher 1 | . 1 . Special Weapon 3 | . 4 2 Slashing Weapon 4 | . . 11 Peak Build Rating 12 | 8 8 12 Average Rating 8 | 6 7 9 On Entrance 7 | 6 8 8 Naked Turns . | . . . Heaviest Build 16 | 13 16 16 Greatest Support 20 | 20 20 20 Greatest Overweight (x) 3 | . 1 3 Average Overweight (x) . | . . . Largest Inventory Capacity 8 | 8 8 8 Average Capacity 7 | 8 8 6 Most Carried 8 | 8 8 7 Average Carried 6 | 6 7 5 Final Capacity 8 | 8 8 5 Final Carried 8 | 8 8 5 Class Distribution -------------------- 88% | Mutant 11% | Scavenger-Mutant Dominant Class ---------------- Mutant | -10/Materials Mutant | -10/Mines Resources | -11 -10 -10 ----------- Run | Yrd Mat Min Matter Collected 755 | 306 118 331 Remotely . | . . . Salvage Created 482 | 291 102 89 Parts 41 | 25 11 5 Haulers Intercepted 1 | . 1 . Recyclers Shooed 2 | . 1 1 Parts Field Recycled . | . . . Retrieved Matter . | . . . Parts Self-Destructed . | . . . Prevented . | . . . Kills | -11 -10 -10 ------- Run | Yrd Mat Min Combat Hostiles Destroyed 15 | . 3 12 Melee 3 | . . 3 Guns 2 | . 1 1 AOE 10 | . 2 8 Classes Destroyed 8 | 3 4 1 Worker 3 | 2 . 1 Tunneler 9 | 8 . 1 Hauler 1 | . 1 . Recycler 1 | 1 . . Operator 1 | . 1 . Watcher 1 | . 1 . Swarmer 3 | . 3 . Assembled 12 | . . 12 Best Kill Streak 9 | 3 3 9 Combat Bots Only 9 | . 3 9 Max Kills in Single Turn 3 | 1 1 3 Gunslinging . | . . . Exploded 2 | . 1 2 Melee 1 | . . 1 Uniques/NPCs Destroyed . | . . . Combat | -11 -10 -10 -------- Run | Yrd Mat Min Hostile Shots Fired 101 | . 30 71 Missed 34 | . 14 20 Damage Taken 1005 | . 221 784 Core 252 | . 37 215 Absorbed by Shields . | . . . Core Remaining (%) 100 | 100 . . Volleys Fired 73 | 48 19 6 Largest 2 | 2 2 2 Hottest 100 | 40 100 80 Shots Fired 138 | 96 31 11 Gun 121 | 96 20 5 Cannon 4 | . 3 1 Launcher 8 | . 3 5 Special 5 | . 5 . Kinetic 107 | 96 10 1 Thermal 23 | . 18 5 Explosive 8 | . 3 5 Electromagnetic . | . . . Robot Hit Streak 9 | 9 2 3 Robot Miss Streak 3 | 3 3 3 Penetration Max . | . . . Secondary Targets . | . . . Shots Hit Robots 82 | 61 11 10 Core Hits 56 | 21 9 26 Critical Kills . | . . . Critical Parts Destroyed . | . . . Critical Strikes . | . . . Melee Attacks 13 | . . 13 Impact . | . . . Slashing 13 | . . 13 Piercing . | . . . Sneak Attacks 3 | . . 3 Combat Hostiles . | . . . Follow-up Attacks . | . . . Damage Inflicted 1724 | 485 288 951 Guns 600 | 485 78 37 Cannons 37 | . 20 17 Explosions 640 | . 162 478 Melee 419 | . . 419 Ramming 28 | . 28 . Kinetic 550 | 485 48 17 Thermal 87 | . 50 37 Explosive 640 | . 162 478 Electromagnetic . | . . . Impact . | . . . Slashing 419 | . . 419 Piercing . | . . . Highest Corruption 2 | . . 2 Average Corruption 2 | . . 2 Corruption Purged . | . . . Corruption Blocked . | . . . Effects 1 | . . 1 Matter Fused 1 | . . 1 Overload Shots . | . . . Overflow Damage 41 | . . 41 Projectiles . | . . . Explosions 17 | . . 17 Melee 24 | . . 24 Knockbacks 1 | . 1 . Impact 1 | . 1 . Kinetic . | . . . Secondary . | . . . Self-Inflicted Damage 64 | . . 64 Shots 2 | . . 2 Rammed . | . . . Targets Rammed 5 | . 5 . Kicked 5 | . 5 . Crushed . | . . . Highest Temperature 90 | . 60 90 Average Temperature 29 | . 24 43 Received Heat Transfer 184 | . 84 100 Siege Activations . | . . . Robots Corrupted . | . . . Combat Hostiles . | . . . Parts Fried . | . . . Impact Corruptions . | . . . Robots Melted . | . . . Combat Hostiles . | . . . Parts Melted . | . . . Heat Transferred 259 | . 148 111 Parts Sabotaged . | . . . Parts Stolen . | . . . Parts Stripped . | . . . Power Chain Reactions . | . . . Alert | -11 -10 -10 ------- Run | Yrd Mat Min Peak Influence 202 | 55 202 59 Initial 35 | . 35 9 Average 48 | 28 84 8 Maximum Alert Level 1 | . 1 . Low Security (%) 97 | 100 95 100 Level 1 2 | . 4 . Level 2 . | . . . Level 3 . | . . . Level 4 . | . . . Level 5 . | . . . High Security . | . . . Max Security . | . . . Squads Dispatched 1 | . 1 . Investigation . | . . . Extermination . | . . . Reinforcement 1 | . 1 . Assault . | . . . Garrison . | . . . Intercept . | . . . Searches Triggered . | . . . Construction Impeded . | . . . Haulers Reinforced . | . . . Active Scanning Responses . | . . . Cargo Convoy Interrupts . | . . . Stealth | -11 -10 -10 --------- Run | Yrd Mat Min Distress Signals 1 | . 1 . Communications Jammed . | . . . Distress Signals . | . . . Times Spotted 35 | . 14 21 Peak Tracking Total 15 | . 5 15 Tactical Retreats 2 | . . 2 Traps | -11 -10 -10 ------- Run | Yrd Mat Min Traps Triggered 1 | . 1 . Indirectly . | . . . Trap Hack Attempts . | . . . Triggered . | . . . Disarmed . | . . . Reprogrammed . | . . . Reused . | . . . Traps Extracted . | . . . Installed . | . . . Triggered . | . . . Machines | -11 -10 -10 ---------- Run | Yrd Mat Min Machines Disabled 2 | . 1 1 Max in Single Turn 1 | . 1 1 Machines Repaired . | . . . Machines Dismantled . | . . . Machines Sabotaged . | . . . Overloaded Fab Kills . | . . . Hacking | -11 -10 -10 --------- Run | Yrd Mat Min Machines Accessed 7 | . 7 . Terminals 5 | . 5 . Fabricators . | . . . Repair Stations 1 | . 1 . Recycling Units 1 | . 1 . Scanalyzers . | . . . Garrison Access . | . . . Total Hacks 25 | . 25 . Successful 14 | . 14 . Failed 11 | . 11 . Catastrophic 2 | . 2 . Database Lockouts . | . . . Manual 19 | . 19 . Terminals 23 | . 23 . Fabricators . | . . . Repair Stations 1 | . 1 . Recycling Units 1 | . 1 . Scanalyzers . | . . . Garrison Access . | . . . Terminal Hacks 4 | . 4 . Part Schematic 1 | . 1 . Prototype ID Bank 2 | . 2 . Terminal Index 1 | . 1 . Fabricator Hacks . | . . . Repair Station Hacks . | . . . Recycling Unit Hacks . | . . . Scanalyzer . | . . . Garrison Access Hacks . | . . . Unauthorized Hacks 10 | . 10 . Terminals 9 | . 9 . Track 1 | . 1 . Botnet 2 | . 2 . Operators 1 | . 1 . Skim 5 | . 5 . Fabricators . | . . . Repair Stations 1 | . 1 . Mechanics 1 | . 1 . Recycling Units . | . . . Scanalyzers . | . . . Garrison Access . | . . . Data Cores Recovered 1 | . 1 . Used . | . . . Hacking Detections 7 | . 7 . Full Trace Events . | . . . Feedback Events . | . . . Feedback Blocked . | . . . Robot Schematics Acquired . | . . . Robots Built . | . . . Authchips . | . . . Time . | . . . Total Robot Build Rating . | . . . Part Schematics Acquired 1 | . 1 . Parts Built . | . . . Authchips . | . . . Time . | . . . Total Part Build Rating . | . . . Parts Repaired . | . . . Time . | . . . Parts Recycled . | . . . Recycled Matter . | . . . Retrieved Matter . | . . . Retrieved Components . | . . . Parts Scanalyzed . | . . . Part Schematics Acquired . | . . . Parts Damaged . | . . . Bothacking | -11 -10 -10 ------------ Run | Yrd Mat Min Used RIF Installer . | . . . Robots Hacked . | . . . Non-combat . | . . . Combat . | . . . Robot Hacks Applied . | . . . Relay Couplers Released . | . . . Fabnet Peak Effective % . | . . . Robots Rewired . | . . . Allies Hacked . | . . . Hacks Repelled . | . . . Allies | -11 -10 -10 -------- Run | Yrd Mat Min Total Allies . | . . . Largest Group . | . . . Highest-Rated Group . | . . . Highest-Rated Ally . | . . . Total Orders . | . . . Ally Attacks . | . . . Total Damage . | . . . Kills . | . . . Allies Corrupted . | . . . Allies Melted . | . . . Intel | -11 -10 -10 ------- Run | Yrd Mat Min Robot Analysis Total . | . . . Derelict Logs Recovered . | . . . Drone Launches . | . . . Drone Recoveries . | . . . Exploration | -11 -10 -10 ------------- Run | Yrd Mat Min Turns Passed 1353 | 270 641 442 Spaces Moved 980 | 97 491 392 Core 42 | . . 42 Treads . | . . . Legs 452 | 97 326 29 Wheels 486 | . 165 321 Hover . | . . . Flight . | . . . Fastest Speed 50 | 120 95 50 Average Speed 105 | 120 111 93 Slowest Speed 200 | 120 120 200 Overloaded Moves . | . . . Propulsion Burnouts . | . . . Robots Hopped . | . . . Cave-ins Triggered . | . . . Exploration Rate (%) 44 | 6 77 50 Regions Visited 2 Branch Regions 1 Pre-discovered Areas . | . . . Known Exits Taken 1 | . 1 . Unknown Exits Taken 1 | 1 . . Scrap Searched . | . . . Spaces Dug 5 | . 5 . Terrain Destroyed 51 | . 17 34 Melee . | . . . Projectile 5 | . 5 . AOE 46 | . 12 34 Terrain Rammed . | . . . Walls Destroyed . | . . . Machines Disabled . | . . . Actions | -11 -10 -10 --------- Run | Yrd Mat Min Total 1160 | 173 544 443 Wait 40 | 26 7 7 Move 978 | 96 490 392 Hop . | . . . Pick Up 16 | 2 7 7 Fast Attach 2 | 1 1 . Attach 7 | . . 7 Detach . | . . . Swap 11 | . 7 4 Drop 15 | . 8 7 Fire 73 | 48 19 6 Melee 13 | . . 13 Ram . | . . . Kick 5 | . 5 . Crush . | . . . Escape Stasis . | . . . Rewire . | . . . Trap . | . . . Miscellaneous . | . . . Route ------- -11/Scrapyard -10/Materials (discovered 4 exits: [*Mat x2] / *Min x2) -10/Mines (discovered 1 exit: [*Mat]) History --------- Turn | Location | Event 1 | -11/Scrapyard | Discovered new exit (range 3) 271 | -11/Scrapyard | Entered Materials 314 | -10/Materials | Build established: Mutant 511 | -10/Materials | Discovered new exit (range 9) 511 | -10/Materials | Discovered new exit (range 14) 566 | -10/Materials | Discovered new exit (range 16) 691 | -10/Materials | Discovered new exit (range 16) 752 | -10/Materials | Learned 2 Storage zone layouts 760 | -10/Materials | Identified exit to Mines 827 | -10/Materials | Learned Storage stockpile data 832 | -10/Materials | Learned 2 Storage zone layouts 833 | -10/Materials | Learned 8 Materials zone layouts 856 | -10/Materials | Learned 4 Recycling zone layouts 912 | -10/Materials | Entered Mines 913 | -10/Mines | Assembled infested the area 918 | -10/Mines | Assisted by a Guerilla fighting off Assembled 964 | -10/Mines | Core integrity fell below 50% 984 | -10/Mines | A weapon hastily lodged in a ceiling crevice suddenly fell to the ground 991 | -10/Mines | Destroyed 9 combat bots 1030 | -10/Mines | Lost 6 parts (1p2n3w) 1097 | -10/Mines | Discovered new exit (range 7) 1278 | -10/Mines | Core integrity fell below 20% 1354 | -10/Mines | Destroyed by S-10 Pest with Light Assault Rifle Last Messages --------------- 01249_ Sneak attack on K-01 Serf. 01249_ Destroyed Wheel. 01258_ Sneak attack on K-01 Serf. 01258_ K-01 Serf destroyed. 01262_ Sneak attack on T-07 Excavator. 01262_ T-07 Excavator destroyed. 01277_ Mining Laser destroyed. 01277_ D-53 Grenadier destroyed. 01302_ The unstable cave ceiling collapses. 01305_ System corrupted: Matter fused (-7). 01331_ K-01 Serf collects debris. 01333_ R-06 Scavenger collects Wheel. 01335_ K-01 Serf collects debris. 01338_ R-06 Scavenger collects Lgt. Ion Engine. 01339_ K-01 Serf collects debris. 01344_ Acquired 7 matter. 01348_ Dropped Mak. Axe. 01349_ Dropped Lgt. Ion Engine. 01349_ Dropped Aluminum Leg. 01350_ Dropped Wheel. Map ----- +----------------------------------------------------+ | ???????????????## #??????????# #???####???? | | ????????????#### #?????????### #?### ##??? | | ???????????## ##????????# ### ##?? | | ???????????# ##???????# ## #?? | | ???????????# ######### ### #?? | | ???????????## !""" ## ## ## ##?? | | ????????????## """ ## ####### ######??? | | ?????????????# """ ### #????# #???????? | | ?????????????## #????## ##???????? | | ??????????????## #????# # #???????? | | ???????????????## #######????# #% #???????? | | ????????????????# #???????#### # ##??????? | | ????????????????# ############ #??????? | | ????????????????# # ##??????? | | ????????????????## ###### #???????? | | ?????????????????# #????# ##???????? | | ?????????????????* #????## #????????? | | ????????????????!%= ?????### ##????????? | | ???????????????# ###?????# ## # #????????? | | ???????????????##????????# ### # ####??????? | | ?????????????????????????# ## #??????? | | ?????????????????????????# #!# ## #??????? | | ?????????????????????????# ## #### #??????? | | ?????????????????????????### k ## #??????? | | ?????????????????????######r # # #??????? | | ?????????????????????# s @ # #?#??????? | | ????????????????###### #### ###????????? | | ????????????????#=/*= #? # ##?????????? | | ????????????????#%####### ### ##?????????? | | ????????????????# #?????# ?#% ##? ???????? | | ????????????????# #?????## ?# ## ???????? | | ????????????????#%#??????#??# # #??????? | | ????????????????# #?????????# ### #??????? | | ????????????????# #?????????# #" # #??????? | | ????????????????# #?????????# ## # #??????? | | ??????????????### ###???????# #?## #??????? | | ?????????????## ##??????# #?## #??????? | | #########????# #??????# ### #??????? | | # #????# ##??????# ## #??????? | | #????# ##???????# ## ##?????? | | #????## #?????#### # ##????? | | #??????### #????## # #????? | | ##???????# ##???# #????? | | """" ####???## #???# " #????? | | """" ##?## #???## ##???? | | """" ### # #????# ##??? | | #????# ##?? | | ## #????# #?? | | ## ### # # #????## #?? | | ?# #?####### ##########??#### ## ##?? | +----------------------------------------------------+ Best States ------------- Heat Dissipation 25 Energy Generation 10 Energy Capacity 250 Matter Stores 300 Matter Capacity 300 Sight Range 18 Terrain Scan Density 10 Evasion (%) 55 Item Schematics ----------------- Targeting Computer | -10/Materials | Hacked Robot Schematics ------------------ None Fabricated ------------ Nothing Alien Tech Used ----------------- None Achievements -------------- None Challenges ------------ None Game ------ Seed ShadeMobileMatrix Manual? 0 Play Time 00:16:35 Cumulative 98.1 hours Start 2024.12.03 @ 14:14:12 End 2024.12.03 @ 14:28:22 Sessions 1 Manual Loads 0 Difficulty Rogue Special Mode None Game No. 142 Rogue 142 Adventurer 0 Explorer 0 Win Type - Total 0 Types 0/0/0/0/0/0/0/0/0 Lore% 57 Gallery% 46 Achievement% 34 Wizard Run 0 Options --------- Layout 1 ASCII 0 Keyboard 0 Movement Mouse Keybinds 0 Fullscreen 1 Font 24/Smallcaps Map View 50x40 Zoom Use 0% Tactical HUD 1 Map Filters NONE Filters NONE Steam 1 RUN: 88516f4b-94da-4eb7-b16f-4c47e964fb9a